fUSD/lending_fUSD_20240414
["ID","MTS","AMOUNT","RATE_DAILY","PERIOD"]
[322624166,1713129359024,-500.0,0.00036207,30]
[322624167,1713129359060,-1630.21,0.00036207,30]
[322624168,1713129359097,-500.0,0.00036207,30]
[322624169,1713129359134,-825.94,0.00036207,30]
[322624170,1713129359172,-500.0,0.00036207,30]
[322624171,1713129359212,-500.0,0.00036207,30]
[322624172,1713129359251,-1630.21,0.00036207,30]
[322624173,1713129359291,-825.94,0.00036207,30]
[322624174,1713129359329,-500.0,0.00036207,30]
[322624175,1713129359368,-500.0,0.00036207,30]
[322624176,1713129359407,-1630.21,0.00036207,30]
[322624177,1713129359446,-500.0,0.00036207,30]
[322624178,1713129359484,-825.94,0.00036207,30]
[322624179,1713129359526,-500.0,0.00036207,30]
[322624180,1713129359567,-500.0,0.00036207,30]
[322624181,1713129359917,-500.0,0.00036207,30]
[322624182,1713129359960,-500.0,0.00036207,30]
[322624183,1713129360002,-1630.21,0.00036207,30]
[322624184,1713129360043,-557.6,0.00036207,30]
[322624185,1713129360083,-500.0,0.00036207,30]
[322624186,1713129360124,-825.94,0.00036207,30]
[322624187,1713129360166,-500.0,0.00036207,30]
[322624188,1713129360214,-500.0,0.00036207,30]
[322624189,1713129360259,-500.0,0.00036207,30]
[322624190,1713129360306,-500.0,0.00036207,30]
[322624191,1713129360352,-825.94,0.00036207,30]
[322624192,1713129360399,-500.0,0.00036207,30]
[322624193,1713129360446,-500.0,0.00036207,30]
[322624194,1713129360493,-500.0,0.00036207,30]
[322624195,1713129360540,-500.0,0.00036207,30]
[322624196,1713129360587,-825.94,0.00036207,30]
[322624197,1713129360634,-1630.21,0.00036207,30]
[322624198,1713129360681,-500.0,0.00036207,30]
[322624199,1713129360727,-557.6,0.00036207,30]
[322624200,1713129360774,-500.0,0.00036207,30]
[322624201,1713129360820,-500.0,0.00036207,30]
[322624202,1713129360866,-500.0,0.00036207,30]
[322624203,1713129360912,-1630.21,0.00036207,30]
[322624204,1713129360960,-825.94,0.00036207,30]
[322624205,1713129361004,-500.0,0.00036207,30]
[322624206,1713129361046,-557.6,0.00036207,30]
[322624207,1713129361089,-500.0,0.00036207,30]
[322624208,1713129361132,-500.0,0.00036207,30]
[322624209,1713129361176,-500.0,0.00036207,30]
[322624210,1713129361220,-1630.21,0.00036207,30]
[322624211,1713129361263,-552.89621015,0.00036207,30]
[322624212,1713129361304,-826.05227696,0.00036207,30]
[322624213,1713129361344,-557.6,0.00036207,30]
[322624214,1713129361385,-500.0,0.00036207,30]
[322624215,1713129361431,-500.0,0.00036207,30]
[322624216,1713129361472,-500.0,0.00036207,30]
[322624217,1713129361514,-1630.21,0.00036207,30]
[322624218,1713129361558,-557.6,0.00036207,30]
[322624219,1713129361603,-500.0,0.00036207,30]
[322624220,1713129361646,-1630.21,0.00036207,30]
[322624221,1713129361688,-500.0,0.00036207,30]
[322624222,1713129361731,-500.0,0.00036207,30]
[322624223,1713129361774,-557.6,0.00036207,30]
[322624224,1713129361815,-500.0,0.00036207,30]
[322624225,1713129361861,-500.0,0.00036207,30]
[322624226,1713129361903,-1630.21,0.00036207,30]
[322624227,1713129361950,-500.0,0.00036207,30]
[322624228,1713129361993,-557.6,0.00036207,30]
[322624229,1713129362035,-500.0,0.00036207,30]
[322624230,1713129362078,-500.0,0.00036207,30]
[322624231,1713129362125,-1630.21,0.00036207,30]
[322624232,1713129362178,-557.6,0.00036207,30]
[322624233,1713129362230,-500.0,0.00036207,30]
[322624234,1713129362276,-500.0,0.00036207,30]
[322624235,1713129362325,-500.0,0.00036207,30]
[322624236,1713129362372,-1630.21,0.00036207,30]
[322624237,1713129362417,-557.6,0.00036207,30]
[322624238,1713129362468,-500.0,0.00036207,30]
[322624239,1713129362518,-500.0,0.00036207,30]
[322624240,1713129362564,-1630.21,0.00036207,30]
[322624241,1713129362610,-500.0,0.00036207,30]
[322624242,1713129362656,-557.6,0.00036207,30]
[322624243,1713129362705,-500.0,0.00036207,30]
[322624244,1713129362749,-1630.29343909,0.00036207,30]
[322624245,1713129362792,-500.0,0.00036207,30]
[322624246,1713129362836,-500.0,0.00036207,30]
[322624247,1713129362880,-557.6,0.00036207,30]
[322624248,1713129362928,-500.0,0.00036207,30]
[322624249,1713129362974,-51.34451657,0.00036207,30]
[322624250,1713129440380,206.4835,0.00018012,2]
[322624417,1713130232299,-155.0,0.00019026,2]
[322624418,1713130232310,-108.31535073,0.00019027,2]
[322624420,1713130232366,-526.55464927,0.00019027,2]
[322624422,1713130232376,-33360.7087,0.000207,2]
[322624423,1713130232386,-3094.98748712,0.0002082,2]
[322624424,1713130232395,-1000.0,0.00020895,2]
[322624425,1713130232405,-1000.0,0.00020895,2]
[322624426,1713130232414,-1000.0,0.00020895,2]
[322624427,1713130232423,-1000.0,0.00020895,2]
[322624428,1713130232432,-1000.0,0.00020895,2]
[322624429,1713130232442,-206.86865436,0.000209,2]
[322624430,1713130232451,-18519.71722154,0.000209,2]
[322624431,1713130232460,-2500.0,0.000209,2]
[322624432,1713130232470,-12564.93075761,0.000209,2]
[322624433,1713130232481,-1641.1844255,0.000209,2]
[322624434,1713130232491,-316.7215316,0.000209,2]
[322624435,1713130232500,-210.59409304,0.000209,3]
[322624436,1713130232509,-13012.17354714,0.000209,2]
[322624437,1713130232519,-7452.59881634,0.000209,2]
[322624438,1713130232529,-1025.0,0.0002095,3]
[322624439,1713130232538,-150.99,0.0002099,2]
[322624440,1713130232548,-164.9,0.0002099,3]
[322624441,1713130232560,-535.88569986,0.00020998,2]
[322624442,1713130232570,-780.05382611,0.00020998,2]
[322624443,1713130232579,-705.30963033,0.00020998,2]
[322624444,1713130232589,-207.53827236,0.00020998,2]
[322624445,1713130232601,-218.94194438,0.00020998,2]
[322624446,1713130232611,-155.0,0.00020998,2]
[322624447,1713130232620,-156.0026956,0.00020999,3]
[322624448,1713130232630,-206.16127901,0.00020999,2]
[322624449,1713130232640,-3513.68608109,0.00020999,2]
[322624450,1713130232649,-499.99,0.00020999,2]
[322624451,1713130232658,-300.0,0.00020999,2]
[322624452,1713130232668,-300.0,0.00020999,2]
[322624453,1713130232678,-300.0,0.00020999,2]
[322624454,1713130232688,-300.0,0.00020999,2]
[322624455,1713130232697,-300.0,0.00020999,2]
[322624456,1713130232706,-300.0,0.00020999,2]
[322624457,1713130232716,-357.66281266,0.00020999,2]
[322624458,1713130232725,-150.0,0.00020999,2]
[322624459,1713130232735,-150.0,0.00020999,2]
[322624460,1713130232744,-150.0,0.00020999,2]
[322624461,1713130232753,-150.0,0.00020999,2]
[322624462,1713130232763,-150.0,0.00020999,2]
[322624463,1713130232773,-150.0,0.00020999,2]
[322624464,1713130232782,-150.0,0.00020999,2]
[322624465,1713130232791,-458.79092259,0.00020999,2]
[322624466,1713130232801,-333.54962431,0.00020999,2]
[322624467,1713130232813,-426.74342858,0.00020999,2]
[322624468,1713130232824,-500.0,0.00020999,2]
[322624469,1713130232834,-500.0,0.00020999,2]
[322624470,1713130232846,-500.0,0.00020999,2]
[322624471,1713130232857,-500.0,0.00020999,2]
[322624472,1713130232868,-500.0,0.00020999,2]
[322624473,1713130232877,-500.0,0.00020999,2]
[322624474,1713130232887,-500.0,0.00020999,2]
[322624475,1713130232896,-193.67260055,0.00020999,2]
[322624476,1713130232905,-500.0,0.00020999,2]
[322624477,1713130232915,-500.0,0.00020999,2]
[322624478,1713130232924,-500.0,0.00020999,2]
[322624479,1713130232933,-470.99335694,0.00020999,2]
[322624480,1713130232942,-195.93589399,0.00020999,2]
[322624481,1713130232951,-500.0,0.00020999,2]
[322624482,1713130232960,-500.0,0.00020999,2]
[322624483,1713130232970,-270.5,0.00020999,2]
[322624484,1713130232979,-841.0,0.00021,2]
[322624485,1713130232989,-19722.56123571,0.00021,2]
[322624486,1713130233077,-11923.42127926,0.00021,2]
[322624487,1713130233088,-1708.9556105,0.00021,2]
[322624488,1713130233178,-6377.55,0.00021,2]
[322624489,1713130233189,-643.28967268,0.00021,2]
[322624490,1713130233233,-364.18813852,0.00021,2]
[322624491,1713130233245,-1087.10900317,0.00021,2]
[322624513,1713130238174,-276.65496675,0.0002099,2]
[322624514,1713130238183,-276.65496675,0.0002099,2]
[322624515,1713130238193,-276.65496675,0.0002099,2]
[322624516,1713130238202,-206.16127901,0.00020999,2]
[322624517,1713130238211,-1756.84304054,0.00020999,2]
[322624518,1713130238220,-809.0,0.00021,2]
[322624519,1713130238229,-6400.72443198,0.00021,2]
[322624520,1713130238304,-2575.68645147,0.00021,2]
[322624522,1713130238350,-5984.0,0.00021,2]
[322624676,1713130240043,-393.71756504,0.00021,2]
[322624678,1713130240053,-15590143.88444776,0.00021,2]
[322624680,1713130240064,-5208.92676619,0.00021,2]
[322625090,1713130243870,-386.73229254,0.000209,2]
[322625092,1713130243880,-878.42152027,0.00020999,2]
[322625094,1713130243890,-94422.75258719,0.00021,2]
[322625320,1713131432369,-155.0,0.00018767,2]
[322625321,1713131432379,-118.57516523,0.00018768,2]
[322625322,1713131432411,-57.33079706,0.00018768,2]
[322625323,1713131432420,-657.21,0.00018869,2]
[322625324,1713131432434,-175.90596228,0.00019534,2]
[322625325,1713131432443,-175.90596228,0.000203,2]
[322625326,1713131432452,-683.35470546,0.000204,2]
[322625329,1713131432521,-989.5305665,0.000204,2]
[322625330,1713131432533,-1064.01999944,0.000204,2]
[322625331,1713131432544,-564.00393569,0.000204,2]
[322625332,1713131432637,-3944.71016495,0.000204,2]
[322625333,1713131432648,-1430.35062796,0.000204,2]
[322625334,1713131432658,-177.98793274,0.00020428,2]
[322625335,1713131432671,-2291.30000015,0.00020428,2]
[322625336,1713131432683,-811.61511842,0.00020428,2]
[322625344,1713131438323,-599.56000001,0.00020428,2]
[322625668,1713131441620,-104.19694868,0.00020428,2]
[322625670,1713131441629,-605.76,0.00020741,2]
[322625672,1713131441639,-200.0,0.00020831,2]
[322625674,1713131441648,-500.0,0.00020831,2]
[322625676,1713131441657,-200.0,0.00020832,2]
[322625678,1713131441666,-200.0,0.00020832,2]
[322625680,1713131441675,-500.0,0.00020832,2]
[322625682,1713131441684,-500.0,0.00020832,2]
[322625684,1713131441693,-200.0,0.00020832,2]
[322625686,1713131441703,-1000.0,0.00020895,2]
[322625688,1713131441711,-1000.0,0.00020895,2]
[322625690,1713131441721,-653.83361244,0.00020895,2]
[322625693,1713131441736,-346.16638756,0.00020895,2]
[322625695,1713131441746,-289.15361244,0.00020895,2]
[322625697,1713131441757,-710.84638756,0.00020895,2]
[322625699,1713131441766,-1000.0,0.00020895,2]
[322625701,1713131441775,-1000.0,0.00020895,2]
[322625703,1713131441784,-656.0731855,0.00020895,2]
[322625932,1713131444482,-343.9268145,0.00020895,2]
[322625933,1713131444491,-377.12456382,0.00020895,2]
[322625934,1713131447768,-622.87543618,0.00020895,2]
[322625935,1713131447778,-502.42859376,0.00020895,2]
[322625943,1713131629452,-3754.55085051,0.0001852,2]
[322625944,1713131629473,-624.34,0.00018521,2]
[322625945,1713131629494,-624.34,0.00020785,2]
[322625946,1713131629515,-46.76914949,0.00020831,2]
[322625949,1713132069000,578.35,0.00017998,2]
[322625960,1713132346749,1745.12275571,0.00015734,2]
[322625961,1713132366170,1745.12275571,0.00015734,2]
[322625962,1713132371876,2244.53,0.00028,30]
[322625964,1713132402342,1745.83354019,0.00015734,2]
[322625965,1713132422051,1745.83354019,0.00015734,2]
[322625967,1713132440496,1272.96465249,0.00015734,2]
[322626067,1713132615494,565.9,0.00017981,2]
[322626143,1713132632298,-2777.78,0.0001989,2]
[322626144,1713132632309,-180.91,0.00019913,2]
[322626145,1713132632320,-484.61,0.00019921,2]
[322626146,1713132632330,-163.19,0.0001996,2]
[322626147,1713132632340,-515.39,0.00020116,2]
[322626148,1713132632354,-565.9,0.00020245,2]
[322626149,1713132632364,-167.64,0.00020478,2]
[322626150,1713132632375,-150.0,0.000205,2]
[322626151,1713132632385,-190.957323,0.00020548,2]
[322626152,1713132632395,-1647.0,0.000207,2]
[322626153,1713132632406,-620.65536704,0.000208,2]
[322626154,1713132632417,-409.62,0.000208,2]
[322626155,1713132632427,-620.65536698,0.00020811,2]
[322626156,1713132632438,-620.65536698,0.00020822,2]
[322626157,1713132632450,-153.23085051,0.00020831,2]
[322626158,1713132632462,-1000.0,0.00020831,2]
[322626159,1713132632472,-200.0,0.00020831,2]
[322626160,1713132632483,-500.0,0.00020831,2]
[322626161,1713132632495,-1000.0,0.00020832,2]
[322626162,1713132632505,-200.0,0.00020832,2]
[322626163,1713132632515,-881.23415114,0.00020832,2]
[322626164,1713132632589,-118.76584886,0.00020832,2]
[322626165,1713132632603,-1000.0,0.00020832,2]
[322626166,1713132632613,-200.0,0.00020832,2]
[322626167,1713132632623,-9.48615787,0.00020832,2]
[322626168,1713132632685,-490.51384213,0.00020832,2]
[322626169,1713132632695,-200.0,0.00020832,2]
[322626170,1713132632706,-620.65536698,0.00020833,2]
[322626171,1713132632719,-620.65536698,0.00020844,2]
[322626172,1713132632730,-620.65536698,0.00020856,2]
[322626173,1713132632741,-455.79274301,0.00020867,2]
[322626174,1713132632849,-164.86262397,0.00020867,2]
[322626175,1713132632859,-620.65536698,0.00020878,2]
[322626176,1713132632868,-395.1706,0.0002088,2]
[322626177,1713132632878,-1000.0,0.0002088,2]
[322626178,1713132632887,-620.65536698,0.00020889,2]
[322626179,1713132632896,-316.48200968,0.0002089,2]
[322626180,1713132632906,-684.29797,0.00020895,2]
[322626181,1713132632916,-1000.0,0.00020895,2]
[322626182,1713132632927,-466.9269,0.00020895,2]
[322626183,1713132632937,-27524.53780395,0.000209,3]
[322626184,1713132632950,-4976.7868,0.000209,3]
[322626185,1713132632962,-494.08,0.000209,3]
[322626203,1713132637537,-2156.43068211,0.000209,3]
[322626204,1713132637548,-842.49076042,0.000209,3]
[322626205,1713132637658,-774.50331437,0.000209,3]
[322626206,1713132637674,-500.97740487,0.000209,3]
[322626207,1713132637871,-32823.5558706,0.000209,3]
[322626208,1713132637886,-32500.0,0.000209,3]
[322626209,1713132637953,-3479.16122823,0.000209,3]
[322626210,1713132637964,-178.03110271,0.000209,2]
[322626211,1713132637976,-288.07495091,0.000209,2]
[322626212,1713132637987,-288.07495091,0.000209,2]
[322626213,1713132637999,-288.07495091,0.000209,2]
[322626214,1713132638010,-288.07495091,0.000209,2]
[322626215,1713132638020,-288.07495091,0.000209,2]
[322626216,1713132638031,-288.07495091,0.000209,2]
[322626217,1713132638043,-288.07495091,0.000209,2]
[322626218,1713132638059,-288.07495091,0.000209,2]
[322626219,1713132638069,-288.07495091,0.000209,2]
[322626220,1713132638080,-288.07495091,0.000209,2]
[322626221,1713132638091,-288.07495091,0.000209,2]
[322626222,1713132638106,-288.07495091,0.000209,2]
[322626223,1713132638118,-288.07495091,0.000209,2]
[322626224,1713132638130,-11100.57828818,0.000209,2]
[322626225,1713132638141,-620.65536698,0.000209,2]
[322626226,1713132638153,-1598.2179436,0.000209,2]
[322626227,1713132638165,-3213.90672007,0.00020978,2]
[322626228,1713132638178,-155.23083713,0.00020978,2]
[322626229,1713132638190,-1253.79868682,0.00020978,2]
[322626230,1713132638202,-1407.98562052,0.00020978,2]
[322626231,1713132638214,-1191.55992416,0.00020978,2]
[322626233,1713132638225,-486.67993032,0.00020978,2]
[322626235,1713132638237,-327.01032315,0.00020978,2]
[322626237,1713132638248,-179.77,0.00020978,2]
[322626238,1713132638260,-281.323,0.00020978,2]
[322626239,1713132638274,-2699.64214933,0.00020979,2]
[322626240,1713132638287,-339194.85872119,0.0002098,2]
[322626241,1713132638299,-2219.56049107,0.0002099,2]
[322626242,1713132638311,-162.45533146,0.0002099,2]
[322626243,1713132638322,-157.041507,0.00020997,2]
[322626246,1713132638333,-222.13890325,0.00020998,2]
[322626248,1713132638345,-185.92963791,0.00020998,2]
[322626250,1713132638360,-249.43078901,0.00020998,2]
[322626252,1713132638372,-558.09924108,0.00020998,2]
[322626254,1713132638383,-157.041507,0.00020998,2]
[322626256,1713132638394,-206.80791795,0.00020999,2]
[322626258,1713132638406,-327.88153472,0.00020999,2]
[322626261,1713132638416,-1109.8186289,0.00020999,2]
[322626263,1713132638427,-157.041507,0.00020999,2]
[322626265,1713132638438,-150.0,0.00020999,2]
[322626267,1713132638450,-150.0,0.00020999,2]
[322626269,1713132638461,-150.0,0.00020999,2]
[322626272,1713132638472,-150.0,0.00020999,2]
[322626274,1713132638483,-150.0,0.00020999,2]
[322626276,1713132638494,-150.0,0.00020999,2]
[322626278,1713132638505,-150.0,0.00020999,2]
[322626280,1713132638516,-150.0,0.00020999,2]
[322626283,1713132638527,-150.0,0.00020999,2]
[322626285,1713132638538,-150.0,0.00020999,2]
[322626287,1713132638548,-189.52971142,0.00020999,2]
[322626289,1713132638559,-201.85429583,0.00020999,2]
[322626292,1713132638570,-500.0,0.00020999,2]
[322626294,1713132638581,-500.0,0.00020999,2]
[322626296,1713132638591,-500.0,0.00020999,2]
[322626298,1713132638606,-500.0,0.00020999,2]
[322626300,1713132638617,-273.51373805,0.00020999,2]
[322626303,1713132638629,-157.041507,0.00020999,2]
[322626305,1713132638640,-350.0,0.00020999,2]
[322626307,1713132638650,-685.0,0.00021,2]
[322626309,1713132638661,-2931759.74459808,0.00021,2]
[322626432,1713132640040,-6807896.45098819,0.00021,2]
[322626441,1713132640072,-502.24,0.00021,2]
[322626445,1713132640086,-900.0,0.00021,2]
[322626449,1713132640100,-715.48314253,0.00021,2]
[322626451,1713132640114,-1183.31319573,0.00021,2]
[322626454,1713132640130,-543.84,0.00021,2]
[322626457,1713132640144,-9273623.30845855,0.00021,2]
[322626459,1713132640159,-3221.081036,0.00021,2]
[322626546,1713132640982,-9730.02911042,0.00021,2]
[322626549,1713132640996,-971.002,0.00021,2]
[322626589,1713132641371,-330.6464705,0.00021,2]
[322626594,1713132641411,-297.45244999,0.00021,2]
[322626596,1713132641424,-96.26511505,0.00021,2]
[322626599,1713132641435,-613.37149563,0.00021,2]
[322626601,1713132641448,-299.48999985,0.00021,2]
[322626603,1713132641461,-14545.13905475,0.00021,2]
[322626606,1713132641474,-533.79686867,0.00021,2]
[322626608,1713132641488,-5001.09300874,0.00021,2]
[322626611,1713132641500,-2642.15021336,0.00021,2]
[322626921,1713132644334,-1115.25716587,0.00020999,2]
[322626924,1713132644343,-300.5580735,0.00020999,2]
[322626925,1713132644356,-209.35361063,0.00021,2]
[322626966,1713132644725,-1899.61510846,0.00021,2]
[322626981,1713132644842,-1524.55944809,0.00021,2]
[322626983,1713132644859,-4848.18384387,0.00021,2]
[322626985,1713132644871,-12369.91915189,0.00021,2]
[322626987,1713132644883,-50065.75039988,0.00021,2]
[322626990,1713132644894,-53094.70928476,0.00021,2]
[322626992,1713132644906,-70561.47519633,0.00021,2]
[322626995,1713132644947,-1369754.63303008,0.00021,2]
[322626996,1713132644958,-3746.82767107,0.00021,2]
[322626997,1713132645030,-1839.58850946,0.00021,2]
[322626998,1713132645042,-1376.75454,0.00021,2]
[322627020,1713132646342,-1493.70710134,0.00021,2]
[322627021,1713132646357,-6229.41609529,0.00021,2]
[322627022,1713132646369,-5075.10035624,0.00021,2]
[322627023,1713132646462,-8059.77563914,0.00021,2]
[322627024,1713132646474,-195555.35999997,0.00021,2]
[322627025,1713132646485,-6186.10282396,0.00021,2]
[322627026,1713132646496,-6415.65924999,0.00021,2]
[322627027,1713132646606,-1034.77033887,0.00021,2]
[322627032,1713132679401,900.0,0.00017981,2]
[322627034,1713133177351,509.31,0.0001801,2]
[322627088,1713133789743,512.74,0.00017842,2]
[322627140,1713133831563,-313.71755464,0.00019777,2]
[322627142,1713133831574,-346.6658644,0.00019778,2]
[322627148,1713133831624,-3728.5741356,0.00019778,2]
[322627149,1713133831634,-221.66,0.00019799,2]
[322627150,1713133831644,-387.69,0.0001985,2]
[322627151,1713133831654,-163.19,0.00019931,2]
[322627152,1713133831663,-1851.18,0.00019931,2]
[322627154,1713133831673,-612.31,0.00019964,2]
[322627156,1713133831682,-1000.0,0.0002,2]
[322627158,1713133831692,-167.6,0.00020049,2]
[322627160,1713133831701,-200.0,0.000201,7]
[322627162,1713133831712,-512.74,0.00020106,2]
[322627164,1713133831722,-500.0,0.000202,7]
[322627165,1713133831731,-908.17,0.000202,2]
[322627167,1713133831740,-499.99,0.000203,2]
[322627169,1713133831750,-800.0,0.000203,7]
[322627171,1713133831759,-1000.0,0.000204,7]
[322627173,1713133831768,-150.0,0.00020493,2]
[322627175,1713133831778,-324.45,0.00020493,2]
[322627177,1713133831787,-150.0,0.00020493,2]
[322627179,1713133831796,-150.0,0.00020493,2]
[322627181,1713133831806,-150.0,0.00020493,2]
[322627183,1713133831816,-324.72,0.00020493,2]
[322627185,1713133831825,-944.31,0.00020493,2]
[322627187,1713133831834,-150.0,0.00020493,2]
[322627189,1713133831844,-150.0,0.00020493,2]
[322627191,1713133831854,-300.0,0.00020493,2]
[322627193,1713133831864,-521.22,0.00020493,2]
[322627195,1713133831874,-908.17,0.000205,2]
[322627196,1713133831883,-1966.1,0.000205,2]
[322627197,1713133831893,-1002.94,0.000205,2]
[322627198,1713133831902,-150.99,0.000205,2]
[322627199,1713133831911,-155.67,0.000205,2]
[322627200,1713133831920,-150.0,0.000205,2]
[322627201,1713133831930,-1300.0,0.000205,7]
[322627202,1713133831940,-200.0,0.000206,7]
[322627203,1713133831950,-150.0,0.000207,2]
[322627204,1713133831962,-150.0,0.000207,2]
[322627205,1713133831972,-150.0,0.000207,2]
[322627206,1713133831981,-150.0,0.000207,2]
[322627207,1713133831990,-521.22,0.000207,2]
[322627208,1713133832000,-150.0,0.000207,2]
[322627209,1713133832010,-150.0,0.000207,2]
[322627210,1713133832019,-794.35,0.000207,2]
[322627211,1713133832029,-150.0,0.000207,2]
[322627212,1713133832038,-150.0,0.000207,2]
[322627213,1713133832048,-1728.26,0.000207,2]
[322627214,1713133832058,-402.88,0.000207,2]
[322627215,1713133832068,-521.22,0.000207,2]
[322627216,1713133832077,-150.0,0.000207,2]
[322627217,1713133832086,-908.17,0.000207,2]
[322627218,1713133832096,-150.0,0.000207,2]
[322627219,1713133832106,-908.17,0.000207,2]
[322627220,1713133832116,-521.22,0.000207,2]
[322627221,1713133832125,-150.0,0.000207,2]
[322627222,1713133832134,-908.17,0.000207,2]
[322627223,1713133832143,-521.22,0.000207,2]
[322627224,1713133832153,-200.0,0.000207,7]
[322627225,1713133832162,-150.0,0.00020725,2]
[322627226,1713133832172,-200.0,0.000208,7]
[322627227,1713133832182,-171.86159,0.00020822,2]
[322627228,1713133832191,-200.0,0.00020832,2]
[322627229,1713133832201,-1000.0,0.00020832,2]
[322627230,1713133832212,-200.0,0.00020832,2]
[322627231,1713133832221,-500.0,0.00020832,2]
[322627232,1713133832230,-200.0,0.00020832,2]
[322627233,1713133832240,-1202.9665,0.00020878,2]
[322627234,1713133832249,-1266.8679,0.00020878,2]
[322627235,1713133832259,-57697.8121,0.0002088,2]
[322627236,1713133832270,-506.8499,0.00020895,2]
[322627237,1713133832280,-4629.56831973,0.000209,2]
[322627238,1713133832294,-835.21364132,0.000209,2]
[322627239,1713133832305,-691.9393164,0.000209,2]
[322627240,1713133832334,-5.49952255,0.000209,2]
[322627241,1713133832343,-2067.288,0.000209,2]
[322627242,1713133832353,-984.1404655,0.000209,2]
[322627243,1713133832363,-167.5866725,0.000209,2]
[322627244,1713133832372,-1000.0,0.000209,2]
[322627245,1713133832381,-152.07065122,0.000209,2]
[322627246,1713133832391,-484.53753314,0.000209,2]
[322627247,1713133832410,-2167.53968146,0.000209,2]
[322627248,1713133832420,-429.03429854,0.000209,2]
[322627249,1713133832431,-500.05224,0.000209,2]
[322627250,1713133832484,-271.2999999,0.000209,2]
[322627251,1713133832551,-408.22040776,0.000209,2]
[322627272,1713133837885,-838.94151757,0.000209,2]
[322627273,1713133837895,-3492.15367028,0.000209,3]
[322627274,1713133837904,-420.59483582,0.000209,2]
[322627275,1713133837913,-200.0,0.000209,7]
[322627276,1713133837922,-392.10578605,0.000209,2]
[322627277,1713133837932,-13184.68449729,0.000209,2]
[322627278,1713133838031,-17215.99505959,0.000209,2]
[322627279,1713133838040,-578.94450572,0.000209,2]
[322627280,1713133838050,-3833.86146093,0.000209,2]
[322627281,1713133838059,-627.59736349,0.000209,2]
[322627283,1713133838069,-627.5973635,0.000209,2]
[322627284,1713133838079,-699.76,0.00020986,2]
[322627285,1713133838089,-699.76,0.00020986,2]
[322627286,1713133838100,-349.88,0.00020986,2]
[322627287,1713133838110,-159.1,0.0002099,2]
[322627288,1713133838120,-189.91857939,0.0002099,2]
[322627289,1713133838130,-159.1,0.0002099,2]
[322627290,1713133838139,-189.91857939,0.0002099,2]
[322627291,1713133838148,-159.1,0.0002099,2]
[322627292,1713133838158,-159.1,0.0002099,2]
[322627293,1713133838168,-185.92963791,0.00020998,2]
[322627294,1713133838177,-222.13890325,0.00020998,2]
[322627295,1713133838187,-558.09924108,0.00020998,2]
[322627296,1713133838196,-249.43078901,0.00020998,2]
[322627297,1713133838205,-258.2923,0.00020998,2]
[322627298,1713133838219,-167.54858951,0.00020999,2]
[322627299,1713133838229,-382.44880744,0.00020999,2]
[322627300,1713133838238,-583.83327053,0.00020999,2]
[322627301,1713133838249,-2277.331676,0.00020999,2]
[322627302,1713133838261,-206.80791795,0.00020999,2]
[322627303,1713133838271,-302.8350286,0.00020999,2]
[322627304,1713133838282,-157.041507,0.00020999,2]
[322627305,1713133838292,-157.041507,0.00020999,2]
[322627306,1713133838302,-157.041507,0.00020999,2]
[322627307,1713133838312,-157.041507,0.00020999,2]
[322627308,1713133838323,-150.0,0.00020999,2]
[322627309,1713133838334,-150.0,0.00020999,2]